[Event "Sardinia World Festival-A 2024"]
[Site "Orosei"]
[Date "2024.04.30"]
[Round "4.23"]
[White "Tudor, Henry Edward"]
[Black "Fromm, Marius"]
[Result "1-0"]
[ECO "E48"]
[WhiteElo "2279"]
[BlackElo "2454"]
[Annotator "TA"]
[PlyCount "141"]
[EventDate "2024.04.26"]
[EventType "swiss"]
[EventCountry "ITA"]
[SourceTitle "playchess.com"]
[Source "ChessBase"]
[SourceQuality "1"]
[TimeControl "40/5400+30:1800+30"]

{[%evp 11,141,17,11,7,29,0,1,-4,45,55,37,34,33,51,47,46,41,41,49,48,58,50,47,0,37,35,45,13,11,0,17,0,0,-12,-12,-22,33,-97,-96,-94,0,-3,-11,-16,0,0,0,0,0,0,0,0,0,0,0,0,0,0,0,0,0,0,0,-93,-40,-29,-46,-45,0,0,0,0,0,0,89,63,41,17,22,22,25,30,30,23,23,23,23,23,23,30,30,16,23,23,44,31,30,0,0,0,30,30,30,30,30,30,30,23,40,40,45,62,109,136,116,116,208,208,208,208,310,310,310,310,310,208,208,208,215,222,29985,29985]} 1. d4 {[%emt 0:07:02]} Nf6 {[%emt 0:00:07]} 2. c4 {[%emt 0:00:05]} e6 {[%emt 0:00:03]} 3. Nc3 {[%emt 0:00:06]} Bb4 {[%emt 0:00:05]} 4. e3 {[%emt 0:00:05]} O-O {[%emt 0:00:39]} 5. Bd3 {[%emt 0:00:09]} Re8 {[%emt 0:00:15]} 6. Nge2 {[%emt 0:00:18]} d5 {[%emt 0:00:18]} 7. O-O {[%emt 0:14:25]} Nbd7 {[%emt 0:00:09]} 8. e4 {[%emt 0:13:46]} dxe4 {[%emt 0:01:38]} 9. Nxe4 {[%emt 0:03:40] The position is equal.} b6 {[%emt 0:05:36] [#]} (9... Nxe4 $11 {is superior.} 10. Bxe4 e5) 10. c5 $1 $14 {[%emt 0:00:40]} bxc5 {[%emt 0:00:53][%cal Bb6c5,Bc5c4][%mdl 32]} 11. a3 {[%emt 0:00:06]} c4 $1 {[%emt 0:00:35]} 12. Nxf6+ {[%emt 0:00:04]} Nxf6 {[%emt 0:01:45]} 13. Bxh7+ {[%emt 0:00:10]} Nxh7 {[%emt 0:03:09]} 14. axb4 {[%emt 0:00:03]} Bb7 {[%emt 0:00:58]} 15. Nc3 {[%emt 0:12:57]} Qd6 {[%emt 0:08:00]} 16. Ra5 {[%emt 0:06:36]} Nf6 {[%emt 0:10:05]} 17. Rg5 {[%emt 0:08:25]} (17. Bg5 $14 {should be considered.}) 17... Rad8 {[%emt 0:01:28]} 18. Be3 {[%emt 0:01:04]} a6 {[%emt 0:01:19][%cal Ob7a8]} 19. Qe2 {[%emt 0:08:13]} (19. Rc5 {with more complications.} Ne4 20. Nxe4 Bxe4 21. Qg4) 19... Qxb4 {[%emt 0:10:33]} 20. Rg3 {[%emt 0:03:32] Hoping for Bh6.} Kf8 {[%emt 0:15:39]} 21. Bf4 {[%emt 0:01:08]} Rxd4 {[%emt 0:12:26]} 22. Be5 {[%emt 0:00:37]} Rh4 {[%emt 0:00:14]} 23. Qe3 {[%emt 0:05:04]} Rg4 {[%emt 0:02:07] Repels Qg5} (23... Qxb2 $2 24. Qc5+ (24. Bxc7 Qc2 $11) 24... Re7 25. Nd5 $18 (25. Bxc7 Rh5 $16) (25. Bxc7 Rh5 $16)) ({Black should try} 23... Rh5 $11) 24. Bd4 {[%emt 0:07:26]} (24. Bxf6 $14 {stays ahead.} Rxg3 25. fxg3 gxf6 26. Qh6+ Kg8 27. Qxf6 Qc5+ 28. Kh1) 24... Rxg3 $1 $17 {[%emt 0:02:48]} (24... Qxb2 $2 {is the wrong capture.} 25. Rb1 Rxg3 26. hxg3 $18 (26. Rxb2 $2 Rxe3 27. fxe3 Bd5 $19) (26. Qxg3 $2 Qc2 $19)) 25. fxg3 {[%emt 0:00:38]} Qxb2 {[%emt 0:00:22]} ({Black should play} 25... Kg8 $1 $17 {aiming for ...e5.} 26. Bxf6 gxf6) 26. Rf2 $132 {[%emt 0:02:46][%mdl 2048] White is not holding back} Qa1+ {[%emt 0:00:06]} 27. Rf1 {[%emt 0:00:08]} Qa5 {[%emt 0:00:39] And now ...e5 would win.} 28. Bxf6 {[%emt 0:01:49]} gxf6 {[%emt 0:00:03]} 29. Qh6+ {[%emt 0:00:03]} Kg8 {[%emt 0:00:31]} 30. Qxf6 {[%emt 0:00:23]} Qc5+ {[%emt 0:05:13]} 31. Rf2 {[%emt 0:01:46]} Qe7 {[%emt 0:05:51]} 32. Qf4 {[%emt 0:00:15]} Rd8 {[%emt 0:02:46]} 33. Qxc4 {[%emt 0:02:58]} c5 {[%emt 0:00:04]} 34. Qg4+ {[%emt 0:00:29]} Kf8 {[%emt 0:00:11]} 35. h4 {[%emt 0:00:32]} Rd4 {[%emt 0:01:34]} 36. Qh5 {[%emt 0:00:31]} Kg7 {[%emt 0:00:28] Against Qh8+} 37. g4 {[%emt 0:01:01] [#]} (37. Ne2 $11 {keeps the balance.} Rd5 38. Qg4+ Kf8 39. Qf4) 37... Rd3 {[%emt 0:03:33]} (37... Kg8 $1 $17) 38. Ne2 $1 $15 {[%emt 0:00:00]} Rd1+ {[%emt 0:07:20]} 39. Kh2 Rd8 {[%emt 0:00:00]} 40. Rxf7+ {[%emt 0:00:37]} Qxf7 {[%emt 0:00:00]} 41. Qg5+ {[%emt 0:30:04]} (41. Qxc5 $2 {too greedy.} Rd5 42. Qc1 Qe7 $19) 41... Kh7 $1 {[%emt 0:03:16]} 42. Qxd8 $11 {[%emt 0:00:00][%mdl 4096] Endgame. Black must now prevent Ng3. KQB-KQN} Bd5 {[%emt 0:00:43] [#]} (42... Qf2 $11 43. Qc7+ Kh6 44. Qf4+ (44. g5+ Kh5 $11) 44... Qxf4+ 45. Nxf4 Bd5 46. g5+ Kg7) 43. Kg3 $1 $16 {[%emt 0:00:00]} Qg7 {[%emt 0:01:01]} 44. Nf4 {[%emt 0:00:00]} Qc3+ {[%emt 0:04:23]} 45. Kh2 {[%emt 0:00:00][%cal Og4g5] g5! would now be deadly.} Qe5 {[%emt 0:00:05]} 46. g3 {[%emt 0:00:00] g5 is the strong threat.} Qa1 {[%emt 0:02:01][%csl Gd5][%cal Ra1h1]} 47. Qe7+ {[%emt 0:00:00]} Qg7 {[%emt 0:00:16]} 48. Qxc5 {[%emt 0:00:00]} Qxg4 {[%emt 0:00:06]} 49. Qa7+ {[%emt 0:00:00]} Kh6 {[%emt 0:01:31]} 50. Qxa6 {[%emt 0:00:00]} Qf3 {[%emt 0:01:43]} 51. Qa1 {[%emt 0:00:00] Dodges Qh1+} (51. Nxe6 $2 Qh1#) 51... e5 {[%emt 0:00:19]} 52. Nxd5 {[%emt 0:00:00]} (52. Qxe5 $2 Qh1#) 52... Qf2+ {[%emt 0:01:31]} 53. Kh3 {[%emt 0:00:00]} Qf5+ {[%emt 0:00:05]} 54. Kh2 {[%emt 0:00:00]} Qf2+ {[%emt 0:00:12]} 55. Kh3 {[%emt 0:00:00]} Qf5+ {[%emt 0:00:05]} 56. Kg2 {[%emt 0:00:00] Intending Qf1 and mate.} Qe4+ {[%emt 0:00:04]} 57. Kf2 {[%emt 0:00:00] White threatens Qa6+ and mate.} Qxd5 $11 {[%emt 0:00:03] KQ-KQ} 58. Qa6+ {[%emt 0:00:00]} Kg7 {[%emt 0:00:44]} 59. Qe2 {[%emt 0:00:00]} Qc5+ {[%emt 0:02:16]} 60. Kf3 {[%emt 0:00:00]} Qd5+ {[%emt 0:00:16]} 61. Qe4 {[%emt 0:00:06]} Qd1+ {[%emt 0:00:26]} (61... Qd6 $1 $14) 62. Kg2 $16 {[%emt 0:00:43]} Qd2+ {[%emt 0:01:31]} 63. Kh3 {[%emt 0:00:23]} Kf6 {[%emt 0:00:19]} (63... Qa5 $16) 64. Qf3+ $18 {[%emt 0:03:06]} Kg6 {[%emt 0:01:44]} 65. h5+ {[%emt 0:00:28]} Kh6 {[%emt 0:04:46]} (65... Kg7 $142 66. Qe4 Qd6) 66. Qf6+ {[%emt 0:00:14]} Kh7 {[%emt 0:00:04]} 67. Qf5+ {[%emt 0:00:50]} Kg8 {[%emt 0:00:39]} 68. Qxe5 {[%emt 0:00:30]} Qd1 {[%emt 0:00:11]} 69. Kh4 {[%emt 0:02:14]} Qh1+ {[%emt 0:00:54]} 70. Kg5 {[%emt 0:00:10]} Qf3 $2 {[%emt 0:00:22]} (70... Qc1+ $18 71. Kg6 Qc2+ 72. Qf5 Qc6+ 73. Qf6 Qd7) 71. Qe8+ {[%emt 0:00:20] Weighted Error Value: White=0.11 (very precise) /Black=0.11 (very precise) .  Mistake:       	White=3     	Black=9      Inaccurate:     	White=3     	Black=2      OK:         	White=35    	Black=18     Best:        	White=7     	Black=8      Strong:       	White=2     	Black=3} 1-0

[Event "Sardinia World Festival-A 2024"]
[Site "Orosei"]
[Date "2024.04.30"]
[Round "4.24"]
[White "Fava, Lorenzo"]
[Black "Levin, Guy"]
[Result "1/2-1/2"]
[ECO "B33"]
[WhiteElo "2279"]
[BlackElo "2451"]
[Annotator "TA"]
[PlyCount "63"]
[EventDate "2024.04.26"]
[EventType "swiss"]
[EventCountry "ITA"]
[SourceTitle "playchess.com"]
[Source "ChessBase"]
[SourceQuality "1"]
[TimeControl "40/5400+30:1800+30"]

{[%evp 12,63,44,28,43,50,45,41,52,53,39,50,46,64,58,53,64,44,65,66,76,67,134,157,130,122,122,131,254,195,189,192,437,439,447,454,704,702,673,34,36,27,16,41,34,42,37,33,39,0,0,0,36,0]} 1. e4 {[%emt 0:00:38]} c5 {[%emt 0:02:57]} 2. Nf3 {[%emt 0:00:11]} Nc6 {[%emt 0:00:05]} 3. d4 {[%emt 0:00:15]} cxd4 {[%emt 0:00:05]} 4. Nxd4 {[%emt 0:00:06]} Qb6 {[%emt 0:00:42]} 5. Nb3 {[%emt 0:00:13]} Nf6 {[%emt 0:00:02]} 6. Nc3 {[%emt 0:00:07]} e6 {[%emt 0:00:07]} 7. Qe2 {[%emt 0:00:15]} Be7 {[%emt 0:01:24]} 8. Be3 {[%emt 0:00:30]} Qc7 {[%emt 0:00:03]} 9. O-O-O {[%emt 0:00:41]} O-O {[%emt 0:05:35]} 10. g4 {[%emt 0:04:11]} d5 {[%emt 0:00:05]} 11. exd5 {[%emt 0:01:00]} Nxd5 {[%emt 0:00:57]} 12. Nxd5 {[%emt 0:01:32]} exd5 {[%emt 0:00:03]} 13. Bg2 {[%emt 0:02:16][%cal Bf1g2,Bg2d5,Bd5c4][%mdl 32]} a5 {[%emt 0:04:11][%cal Ba7a5,Ba5a4][%mdl 32]} 14. a3 {[%emt 0:05:40]} (14. Rxd5 Nb4 15. Rc5 Bxc5 (15... Nxa2+ 16. Kb1 $17) 16. Nxc5 Nxa2+ 17. Kb1 Nb4 $17) 14... a4 {[%emt 0:47:03]} 15. Nd4 {[%emt 0:01:10]} Be6 {[%emt 0:02:06]} 16. Nb5 {[%emt 0:18:08]} Qa5 {[%emt 0:00:22]} ({Better is} 16... Qd7 $14) 17. Bxd5 $16 {[%emt 0:24:00]} Bxg4 {[%emt 0:00:56]} 18. Qxg4 {[%emt 0:00:04][%cal Oh1g1] [#] Black must now prevent Rhg1!} Qxb5 {[%emt 0:00:09]} 19. c4 {[%emt 0:00:54] White is more active.} Qb3 {[%emt 0:05:24]} (19... Qa6 $16 {was called for.}) 20. c5 {[%emt 0:01:44]} Qb5 {[%emt 0:01:04]} 21. Bc4 {[%emt 0:00:41] A strong pair of Bishops.} Qa5 {[%emt 0:02:40]} (21... Ne5 22. Qxg7+ (22. Bxb5 Nxg4 23. Rd7 Bxc5 $11) 22... Kxg7 23. Bxb5 Ra5) 22. Rhg1 $18 {[%emt 0:00:57]} g6 {[%emt 0:04:10] [#]} 23. Qe4 {[%emt 0:17:20][%cal Og1g6] Dodges Ne5. White threatens Rxg6+! and mate.} Kg7 {[%emt 0:02:51]} (23... Bxc5 24. Qxg6+ (24. Rxg6+ Kh8 25. Rh6 Bxe3+ 26. fxe3 Qd2+ 27. Rxd2 f5) 24... hxg6 25. Rxg6+ Kh7 26. Rh6+ Kg8 27. Rg1#) (23... Kh8 $142 24. Rd7 Bxc5) 24. Rd7 {[%emt 0:04:05][%csl LRb7,LRe7]} Bf6 {[%emt 0:01:40]} 25. Qd5 $2 {[%emt 0:05:31]} (25. Qf4 $18 Ne7 26. Qxf6+ (26. Rxb7 Rae8 $18) (26. Bd4 Ra6 $18) 26... Kxf6 27. Bd4+ Kf5 28. Bd3+ Kf4 29. Be3+ Ke5 30. f4+ (30. Rxe7+ $2 {too greedy.} Kf6 $19) 30... Kf6 31. Bd4+ Ke6 32. Rd6#) 25... Ne5 $14 {[%emt 0:01:53]} 26. Bd2 {[%emt 0:00:05] Dancing on a razor blade.} Nxd7 {[%emt 0:01:29]} 27. Bxa5 {[%emt 0:00:10]} Rxa5 {[%emt 0:00:02]} 28. Qxd7 {[%emt 0:02:29]} Rxc5 {[%emt 0:00:29]} 29. Rg4 {[%emt 0:00:49][%cal Oc1b1] aiming for Kb1!} b5 {[%emt 0:00:27]} 30. Qa7 {[%emt 0:01:20]} (30. Rf4 $5) 30... Rc6 {[%emt 0:03:22]} 31. Qd7 {[%emt 0:01:16]} Rc5 {[%emt 0:00:03]} 32. Qa7 {[%emt 0:02:24] Blacks defense is rewarded with a draw.   Weighted Error Value: White=0.24 (precise) /Black=0.32.  Mistake:       	---       	Black=4      Inaccurate:     	White=2     	---        OK:         	White=10    	Black=9      Best:        	White=4     	Black=2} (32. Rf4 $5) 1/2-1/2

[Event "Sardinia World Festival-A 2024"]
[Site "Orosei"]
[Date "2024.04.30"]
[Round "4.25"]
[White "Olsen, Filip Boe"]
[Black "Nandhidhaa, P V"]
[Result "1-0"]
[ECO "E04"]
[WhiteElo "2440"]
[BlackElo "2276"]
[Annotator "TA"]
[PlyCount "103"]
[EventDate "2024.04.26"]
[EventType "swiss"]
[EventCountry "ITA"]
[SourceTitle "playchess.com"]
[Source "ChessBase"]
[SourceQuality "1"]
[TimeControl "40/5400+30:1800+30"]

{[%evp 13,103,25,34,0,9,7,39,23,42,41,28,37,77,54,44,44,54,56,45,35,87,86,108,98,108,106,171,143,206,180,245,260,214,273,251,266,350,365,352,354,283,17,10,7,7,13,16,16,77,78,98,100,105,10,10,7,8,8,7,0,0,0,262,262,295,295,302,295,288,288,275,272,258,258,258,257,29952,29954,29954,29956,29957,29958,29959,29960,29964,29967,29964,29965,29971,29973,29969,29968]} 1. d4 {[%emt 0:00:04]} Nf6 {[%emt 0:07:13]} 2. c4 {[%emt 0:00:19]} e6 {[%emt 0:00:15]} 3. Nf3 {[%emt 0:00:16]} d5 {[%emt 0:00:13]} 4. g3 {[%emt 0:00:08]} dxc4 {[%emt 0:00:16]} 5. Bg2 {[%emt 0:00:10]} Nbd7 {[%emt 0:00:22]} 6. O-O {[%emt 0:00:23]} c6 {[%emt 0:00:20]} 7. a4 {[%emt 0:09:08]} a5 {[%emt 0:00:15]} 8. Nfd2 {[%emt 0:08:31]} Nb6 {[%emt 0:04:59]} 9. e3 {[%emt 0:06:13]} e5 {[%emt 0:08:01]} 10. dxe5 {[%emt 0:04:05] White is slightly better.} Ng4 {[%emt 0:00:36]} 11. Nf3 {[%emt 0:00:43]} Qxd1 {[%emt 0:08:58]} 12. Rxd1 {[%emt 0:00:02]} Nd7 {[%emt 0:01:19] [#]} 13. e6 {[%emt 0:02:37]} fxe6 {[%emt 0:00:26]} 14. Nbd2 {[%emt 0:02:50][%cal Bb1d2,Bd2c4,Bc4e5][%mdl 32]} Nge5 $1 {[%emt 0:07:47]} 15. Nxe5 {[%emt 0:03:25]} Nxe5 {[%emt 0:00:03]} 16. f4 {[%emt 0:00:22]} Nd3 {[%emt 0:02:01]} (16... Nf7 $1 $14) 17. Nxc4 $16 {[%emt 0:00:15]} Nxc1 {[%emt 0:00:13]} 18. Raxc1 {[%emt 0:00:47]} Bb4 {[%emt 0:01:36]} 19. Rd3 $36 {[%emt 0:13:47][%mdl 2048] Keeping Black busy. White has more active pieces.} Ke7 {[%emt 0:01:15]} (19... Be7 $16 20. h4 g6) 20. Rcd1 $18 {[%emt 0:00:20]} Bc5 {[%emt 0:02:24]} (20... Re8 $16 {was necessary.} 21. Be4 e5) 21. h4 {[%emt 0:07:37]} Ra6 {[%emt 0:14:34]} (21... Re8 $142 22. Be4 g6) 22. Ne5 {[%emt 0:07:59]} Rb6 {[%emt 0:06:22]} 23. b3 {[%emt 0:05:02]} Rb4 {[%emt 0:03:38]} 24. Kf2 $1 {[%emt 0:02:25]} Bb6 {[%emt 0:03:34] [#]} 25. Rd7+ $1 {[%emt 0:02:26][%mdl 512]} Bxd7 {[%emt 0:02:00]} 26. Rxd7+ {[%emt 0:00:02]} Kf8 {[%emt 0:02:17]} 27. Nc4 $2 {[%emt 0:00:43]} (27. Rxb7 $2 Bxe3+ (27... Rxb3 $2 28. Nd7+ Kg8 29. Bh3 $18) 28. Kxe3 Rxb7 $19) ({White should play} 27. Rf7+ $18 Kg8 28. Bh3) 27... g6 $1 $11 {[%emt 0:02:53]} 28. Ke2 {[%emt 0:04:44]} (28. Rxb7 $2 Bxe3+ 29. Kxe3 Rxb7 $17) 28... Bc5 $1 {[%emt 0:04:04]} 29. Nxa5 {[%emt 0:02:06]} b6 {[%emt 0:02:36]} 30. Nc4 {[%emt 0:10:38] With the idea Rd8+.} b5 {[%emt 0:01:23]} (30... Rxb3 $11 31. Bxc6 h5 (31... Rc3 32. Bb5 $16)) 31. axb5 $16 {[%emt 0:04:08]} cxb5 {[%emt 0:00:25]} 32. Nd2 {[%emt 0:00:01]} Be7 {[%emt 0:04:12] [#]} 33. Kd3 {[%emt 0:01:57]} (33. Bh3 $1 $16 {[%cal Rh3e6]} e5 (33... Kf7 $2 34. Nf3 $18) 34. fxe5) 33... Kf7 $11 {[%emt 0:00:29]} 34. Bb7 {[%emt 0:01:46]} (34. Rc7 $5 Rd8+ $8 35. Kc3 Rxd2 36. Kxd2 Rxb3 37. Ke2 $11) 34... Rd8 {[%emt 0:01:04]} 35. Rxd8 {[%emt 0:00:08]} Bxd8 {[%emt 0:00:04][%mdl 4096] Endgame. KRB-KBN} 36. Kc2 {[%emt 0:00:12] Nf3 is the strong threat.} (36. Kc3 $5 Ba5 $8 37. Kc2 $14) 36... Bb6 {[%emt 0:01:13]} 37. Nf3 {[%emt 0:00:51] Strongly threatening Ne5+.} (37. Kc3 $5 Ba5 $8 38. Kc2 $11) 37... Bxe3 $2 {[%emt 0:01:39][%mdl 8192] [#] Black is on the road to losing.} (37... Kg7 $11 {and Black stays safe.}) 38. Kc3 $1 $18 {[%emt 0:00:26]} Rxb3+ {[%emt 0:04:46]} 39. Kxb3 {[%emt 0:00:02]} Bf2 {[%emt 0:00:00]} 40. g4 {[%emt 0:01:09]} Bg3 {[%emt 0:01:14]} 41. Kb4 {[%emt 0:08:46]} Bxf4 {[%emt 0:00:02]} 42. Kxb5 {[%emt 0:01:04]} Kf6 {[%emt 0:00:30]} 43. Be4 {[%emt 0:01:49]} Bg3 {[%emt 0:00:17]} 44. Kc6 {[%emt 0:00:30]} Bxh4 $2 {[%emt 0:04:47]} (44... Bf4 $18 45. Kd7 Bg3) 45. Nxh4 {[%emt 0:00:11] White mates.} Kg5 {[%emt 0:00:03]} 46. Ng2 {[%emt 0:01:00]} Kxg4 {[%emt 0:00:08]} 47. Kd6 {[%emt 0:00:18]} h5 {[%emt 0:01:17][%cal Bh7h5,Bh5h4,Bh4h3][%mdl 32]} 48. Bxg6 {[%emt 0:07:03]} h4 {[%emt 0:00:44]} 49. Ke5 {[%emt 0:01:02]} h3 {[%emt 0:00:24]} 50. Nf4 {[%emt 0:01:28]} h2 {[%emt 0:01:18]} 51. Be4 $1 {[%emt 0:00:13]} (51. Nxe6 h1=Q (51... h1=R 52. Bh5+ Kh4 53. Bf7 $11) 52. Be4 Qa1+ 53. Kd6 Qd1+ 54. Ke5 Qc1 55. Bf5+ Kf3 56. Nd4+ Ke3 57. Nc2+ Kd2 $19) 51... Kg3 {[%emt 0:00:11]} 52. Nd3 {[%emt 0:01:20] Weighted Error Value: White=0.13 (very precise) /Black=0.35.  Loses game:     	---       	Black=1      Missed win:     	White=1     	---        Mistake:       	White=1     	Black=6      Inaccurate:     	---       	Black=3      OK:         	White=20    	Black=11     Best:        	White=2     	Black=3      Strong:       	White=2     	Black=3      Brilliant:      	White=1     	---} 1-0

[Event "Sardinia World Festival-A 2024"]
[Site "Orosei"]
[Date "2024.04.30"]
[Round "4.26"]
[White "Perossa, Nicolas"]
[Black "Ben Ari, Yannay"]
[Result "0-1"]
[ECO "B30"]
[WhiteElo "2269"]
[BlackElo "2436"]
[Annotator "TA"]
[PlyCount "68"]
[EventDate "2024.04.26"]
[EventType "swiss"]
[EventCountry "ITA"]
[SourceTitle "playchess.com"]
[Source "ChessBase"]
[SourceQuality "1"]
[TimeControl "40/5400+30:1800+30"]

{[%evp 15,68,11,22,21,27,16,28,7,0,-30,-25,-34,64,52,59,72,72,69,77,45,54,-21,-22,-37,0,0,-8,-7,0,-122,-123,-130,-139,-145,-86,-102,-108,-302,-279,-507,-489,-701,-691,-702,-698,-710,-699,-768,-764,-900,-889,-5021,-5021,-5547,-4766]} 1. e4 {[%emt 0:00:02]} c5 {[%emt 0:07:39]} 2. Nf3 {[%emt 0:00:04]} e6 {[%emt 0:00:07]} 3. g3 {[%emt 0:00:31]} Nc6 {[%emt 0:00:08]} 4. Bg2 {[%emt 0:00:06]} Nf6 {[%emt 0:00:14]} 5. d3 {[%emt 0:00:07]} d6 {[%emt 0:01:00]} 6. O-O {[%emt 0:00:32]} Be7 {[%emt 0:00:48]} 7. Re1 {[%emt 0:05:26]} O-O {[%emt 0:01:37]} 8. c3 {[%emt 0:03:45]} Bd7 {[%emt 0:13:24]} 9. Na3 {[%emt 0:28:36]} Rc8 {[%emt 0:02:01]} 10. Nc2 {[%emt 0:03:45]} b5 {[%emt 0:13:53]} 11. a4 {[%emt 0:03:56] White has an edge.} b4 {[%emt 0:10:38]} 12. c4 {[%emt 0:02:31]} Ng4 {[%emt 0:10:29]} 13. b3 {[%emt 0:13:17]} Bf6 {[%emt 0:03:04]} (13... Nge5 $15) 14. d4 $14 {[%emt 0:13:09]} Qb6 {[%emt 0:05:49][%cal Rc5d4]} 15. h3 {[%emt 0:02:02]} Nxf2 {[%emt 0:00:39]} 16. Kxf2 {[%emt 0:00:06]} cxd4 {[%emt 0:00:07]} 17. Qd3 {[%emt 0:07:42][%cal Oa4a5]} (17. Kf1 $5) 17... e5 {[%emt 0:11:23]} 18. Bb2 {[%emt 0:03:08]} (18. Re2 $14) 18... Na5 $11 {[%emt 0:02:05]} 19. Rad1 {[%emt 0:07:08]} Be6 {[%emt 0:06:13]} (19... Nb7 {is more complex.} 20. Qd2 a5 21. Ncxd4 exd4 22. Bxd4 Bxd4+ 23. Nxd4 Nc5) 20. Ncxd4 {[%emt 0:01:33]} exd4 {[%emt 0:01:01]} 21. Bxd4 {[%emt 0:00:13]} Bxd4+ {[%emt 0:00:19]} 22. Qxd4 {[%emt 0:01:09]} (22. Nxd4 $11 Nb7 23. Qe3) 22... Nxb3 $17 {[%emt 0:00:25]} 23. Qxb6 {[%emt 0:00:05]} axb6 {[%emt 0:00:05]} 24. Rxd6 {[%emt 0:00:05]} Rxc4 {[%emt 0:00:56]} (24... Nc5 $142 {...Rfd8 would now be deadly.} 25. Bf1 Rb8 (25... Nxa4 26. Nd4 $17)) 25. Rxb6 {[%emt 0:01:35]} Nc5 {[%emt 0:00:01][%csl LRa4,LRe4]} 26. Ne5 {[%emt 0:01:12] [#] Inhibits Nd3+. Now White is beyond hope.} (26. Bf1 $17 {was worth a try.} Nxa4 (26... Rxe4 27. a5 $15) (26... Nxe4+ $2 {perishes.} 27. Ke3 $18) (26... Rc2+ 27. Kg1 $17) 27. Bxc4 Nxb6 28. Bxe6 fxe6 29. Rc1 (29. Rb1 $2 Nc4 $19)) 26... Rc2+ $19 {[%emt 0:00:22]} 27. Re2 $2 {[%emt 0:00:04]} (27. Kg1 {is a better defense.}) 27... b3 {[%emt 0:00:15] Black is clearly winning.} ({Stronger than} 27... Nxa4 28. Rxb4 Rc5 29. Nd3 $11) 28. Ke3 {[%emt 0:01:43]} (28. Bf3 $142) 28... Rxe2+ {[%emt 0:02:00]} 29. Kxe2 {[%emt 0:00:01]} Nxa4 {[%emt 0:00:01]} 30. Rb4 {[%emt 0:00:16]} b2 {[%emt 0:00:04]} 31. Kd2 {[%emt 0:01:09][%cal Oe5d3]} Ba2 {[%emt 0:00:07]} 32. Kc2 {[%emt 0:00:54]} Rc8+ {[%emt 0:00:30]} 33. Nc6 {[%emt 0:00:01]} Rxc6+ {[%emt 0:00:07]} 34. Kd2 {[%emt 0:00:01]} b1=Q {[%emt 0:00:12] Weighted Error Value: White=1.11/Black=0.14 (very precise) .  Loses game:     	White=1     	---        Mistake:       	White=4     	Black=2      Inaccurate:     	White=2     	Black=1      OK:         	White=2     	Black=6      Best:        	White=2     	Black=4} 0-1